fUSD/lending_fUSD_20240822
["ID","MTS","AMOUNT","RATE_DAILY","PERIOD"]
[335547739,1724319072513,-500.0,0.00010999,2]
[335547740,1724319072523,-500.0,0.00010999,2]
[335547741,1724319072533,-325.71069496,0.00010999,2]
[335547742,1724319072542,-500.0,0.00010999,2]
[335547743,1724319072552,-500.0,0.00010999,2]
[335547744,1724319072561,-500.0,0.00010999,2]
[335547745,1724319072570,-500.0,0.00010999,2]
[335547746,1724319072579,-500.0,0.00010999,2]
[335547747,1724319072588,-500.0,0.00010999,2]
[335547748,1724319072598,-500.0,0.00010999,2]
[335547749,1724319072607,-500.0,0.00010999,2]
[335547750,1724319072618,-500.0,0.00010999,2]
[335547751,1724319072633,-500.0,0.00010999,2]
[335547752,1724319072744,-500.0,0.00010999,2]
[335547753,1724319072754,-500.0,0.00010999,2]
[335547754,1724319072765,-500.0,0.00010999,2]
[335547755,1724319072775,-500.0,0.00010999,2]
[335547756,1724319072785,-502.26046188,0.00010999,2]
[335547757,1724319072795,-500.0,0.00010999,2]
[335547758,1724319072807,-500.0,0.00010999,2]
[335547759,1724319072817,-500.0,0.00010999,2]
[335547760,1724319072827,-500.0,0.00010999,2]
[335547761,1724319072838,-500.0,0.00010999,2]
[335547762,1724319072848,-500.0,0.00010999,2]
[335547763,1724319072858,-500.0,0.00010999,2]
[335547764,1724319072868,-500.0,0.00010999,2]
[335547765,1724319072879,-500.0,0.00010999,2]
[335547766,1724319072890,-500.0,0.00010999,2]
[335547767,1724319072899,-500.0,0.00010999,2]
[335547768,1724319072909,-219.34,0.00010999,2]
[335547769,1724319072919,-500.0,0.00010999,2]
[335547770,1724319072930,-500.0,0.00010999,2]
[335547771,1724319072940,-500.0,0.00010999,2]
[335547772,1724319072949,-500.0,0.00010999,2]
[335547773,1724319072959,-500.0,0.00010999,2]
[335547774,1724319072969,-500.0,0.00010999,2]
[335547775,1724319072978,-500.0,0.00010999,2]
[335547776,1724319072987,-197.99417022,0.00010999,2]
[335547777,1724319072996,-151.30393379,0.00010999,2]
[335547778,1724319073006,-500.0,0.00010999,2]
[335547779,1724319073015,-500.0,0.00010999,2]
[335547780,1724319073024,-500.0,0.00010999,2]
[335547781,1724319073033,-500.0,0.00010999,2]
[335547782,1724319073043,-500.0,0.00010999,2]
[335547783,1724319073052,-500.0,0.00010999,2]
[335547784,1724319073061,-500.0,0.00010999,2]
[335547785,1724319073070,-274.9451811,0.00010999,2]
[335547786,1724319073079,-500.0,0.00010999,2]
[335547787,1724319073089,-500.0,0.00010999,2]
[335547788,1724319073098,-500.0,0.00010999,2]
[335547789,1724319073107,-500.0,0.00010999,2]
[335547790,1724319073118,-500.0,0.00010999,2]
[335547791,1724319073127,-272.86970466,0.00010999,2]
[335547792,1724319073138,-500.0,0.00010999,2]
[335547793,1724319073147,-433.69759195,0.00010999,2]
[335547794,1724319073157,-9238.34,0.00010999,2]
[335547795,1724319073167,-9238.34,0.00010999,2]
[335547796,1724319073176,-9238.34,0.00010999,2]
[335547797,1724319073185,-9238.34,0.00010999,2]
[335547798,1724319073195,-9238.34,0.00010999,2]
[335547799,1724319073204,-9238.34,0.00010999,2]
[335547800,1724319073213,-9238.34,0.00010999,2]
[335547801,1724319073223,-9238.34,0.00010999,2]
[335547802,1724319073232,-9238.34,0.00010999,2]
[335547803,1724319073242,-9238.34,0.00010999,2]
[335547804,1724319073251,-9238.34,0.00010999,2]
[335547805,1724319073261,-500.0,0.00010999,2]
[335547806,1724319073270,-9238.34,0.00010999,2]
[335547807,1724319073279,-500.0,0.00010999,2]
[335547808,1724319073289,-9238.34,0.00010999,2]
[335547809,1724319073300,-500.0,0.00010999,2]
[335547810,1724319073310,-9238.34,0.00010999,2]
[335547811,1724319073319,-500.0,0.00010999,2]
[335547812,1724319073328,-9238.34,0.00010999,2]
[335547813,1724319073338,-500.0,0.00010999,2]
[335547814,1724319073348,-9238.34,0.00010999,2]
[335547815,1724319073358,-500.0,0.00010999,2]
[335547816,1724319073367,-9238.34,0.00010999,2]
[335547817,1724319073376,-500.0,0.00010999,2]
[335547818,1724319073386,-9238.34,0.00010999,2]
[335547819,1724319073395,-500.0,0.00010999,2]
[335547820,1724319073405,-9238.54694781,0.00010999,2]
[335547821,1724319073414,-500.0,0.00010999,2]
[335547822,1724319073424,-500.0,0.00010999,2]
[335547823,1724319073434,-500.0,0.00010999,2]
[335547824,1724319073444,-639.71594044,0.00010999,2]
[335547825,1724319073454,-832.86,0.00010999,2]
[335547826,1724319073464,-832.86,0.00010999,2]
[335547827,1724319073473,-832.86,0.00010999,2]
[335547828,1724319073483,-832.86,0.00010999,2]
[335547829,1724319073493,-167.05773547,0.00010999,2]
[335547830,1724319073503,-832.86,0.00010999,2]
[335547831,1724319073513,-832.86,0.00010999,2]
[335547832,1724319073522,-832.86,0.00010999,2]
[335547833,1724319073531,-832.86,0.00010999,2]
[335547834,1724319073540,-832.86,0.00010999,2]
[335547835,1724319073549,-832.86,0.00010999,2]
[335547836,1724319073558,-832.86,0.00010999,2]
[335547837,1724319073567,-832.86,0.00010999,2]
[335547838,1724319073576,-832.86,0.00010999,2]
[335547839,1724319073585,-832.86,0.00010999,2]
[335547840,1724319073594,-832.86,0.00010999,2]
[335547841,1724319073604,-832.86,0.00010999,2]
[335547842,1724319073613,-832.86,0.00010999,2]
[335547843,1724319073624,-832.94179946,0.00010999,2]
[335547844,1724319073634,-500.0,0.00010999,2]
[335547845,1724319073644,-500.0,0.00010999,2]
[335547846,1724319073653,-500.0,0.00010999,2]
[335547847,1724319073663,-500.0,0.00010999,2]
[335547848,1724319073672,-500.0,0.00010999,2]
[335547849,1724319073681,-500.0,0.00010999,2]
[335547850,1724319073691,-500.0,0.00010999,2]
[335547851,1724319073701,-500.0,0.00010999,2]
[335547852,1724319073711,-500.0,0.00010999,2]
[335547853,1724319073720,-500.0,0.00010999,2]
[335547854,1724319073729,-500.0,0.00010999,2]
[335547855,1724319073738,-500.0,0.00010999,2]
[335547856,1724319073747,-500.0,0.00010999,2]
[335547857,1724319073756,-150.90607499,0.00010999,2]
[335547858,1724319073765,-202.89545393,0.00010999,2]
[335547859,1724319073775,-500.0,0.00010999,2]
[335547860,1724319073784,-500.0,0.00010999,2]
[335547861,1724319073794,-500.0,0.00010999,2]
[335547862,1724319073804,-500.0,0.00010999,2]
[335547863,1724319073813,-500.0,0.00010999,2]
[335547864,1724319073822,-500.0,0.00010999,2]
[335547865,1724319073832,-648.69,0.00010999,2]
[335547866,1724319073841,-166.5824,0.00010999,2]
[335547867,1724319073850,-648.69,0.00010999,2]
[335547868,1724319073860,-648.69,0.00010999,2]
[335547869,1724319073869,-648.69,0.00010999,2]
[335547870,1724319073879,-648.69,0.00010999,2]
[335547871,1724319073889,-648.69,0.00010999,2]
[335547872,1724319073898,-648.69,0.00010999,2]
[335547873,1724319073907,-648.69,0.00010999,2]
[335547874,1724319073917,-648.69,0.00010999,2]
[335547875,1724319073927,-648.69,0.00010999,2]
[335547876,1724319073936,-648.69,0.00010999,2]
[335547877,1724319073946,-648.69,0.00010999,2]
[335547878,1724319073955,-648.69,0.00010999,2]
[335547879,1724319073965,-500.0,0.00010999,2]
[335547880,1724319073975,-648.69,0.00010999,2]
[335547881,1724319073984,-500.0,0.00010999,2]
[335547882,1724319073994,-648.69,0.00010999,2]
[335547883,1724319074004,-500.0,0.00010999,2]
[335547884,1724319074014,-648.69,0.00010999,2]
[335547885,1724319074023,-500.0,0.00010999,2]
[335547886,1724319074032,-648.69,0.00010999,2]
[335547887,1724319074041,-530.83384341,0.00010999,2]
[335547888,1724319074051,-648.91242259,0.00010999,2]
[335547889,1724319074060,-500.0,0.00010999,2]
[335547890,1724319074069,-196.09250517,0.00010999,2]
[335547891,1724319074079,-500.0,0.00010999,2]
[335547892,1724319074088,-500.0,0.00010999,2]
[335547893,1724319074098,-158.37489103,0.00010999,2]
[335547894,1724319074107,-500.0,0.00010999,2]
[335547895,1724319074116,-500.0,0.00010999,2]
[335547896,1724319074125,-500.0,0.00010999,2]
[335547897,1724319074135,-500.0,0.00010999,2]
[335547898,1724319074144,-500.0,0.00010999,2]
[335547899,1724319074153,-500.0,0.00010999,2]
[335547900,1724319074163,-187.33571009,0.00010999,2]
[335547901,1724319074173,-500.0,0.00010999,2]
[335547902,1724319074183,-1031.86,0.00010999,2]
[335547903,1724319074193,-1031.86,0.00010999,2]
[335547904,1724319074202,-500.0,0.00010999,2]
[335547905,1724319074212,-1031.86,0.00010999,2]
[335547906,1724319074222,-355.71096388,0.00010999,2]
[335547907,1724319074232,-1031.86,0.00010999,2]
[335547908,1724319074242,-1031.86,0.00010999,2]
[335547909,1724319074252,-1031.86,0.00010999,2]
[335547910,1724319074262,-1031.86,0.00010999,2]
[335547911,1724319074271,-1031.86,0.00010999,2]
[335547912,1724319074280,-1031.86,0.00010999,2]
[335547913,1724319074290,-1031.86,0.00010999,2]
[335547914,1724319074300,-1031.86,0.00010999,2]
[335547915,1724319074309,-1031.86,0.00010999,2]
[335547916,1724319074320,-1031.9,0.00010999,2]
[335547917,1724319074329,-1130.77,0.00010999,2]
[335547918,1724319074338,-1130.77,0.00010999,2]
[335547919,1724319074348,-1130.77,0.00010999,2]
[335547920,1724319074358,-1130.77,0.00010999,2]
[335547921,1724319074367,-1130.77,0.00010999,2]
[335547922,1724319074376,-1130.77,0.00010999,2]
[335547923,1724319074386,-1130.77,0.00010999,2]
[335547924,1724319074395,-1130.77,0.00010999,2]
[335547925,1724319074404,-1130.77,0.00010999,2]
[335547926,1724319074414,-1130.77,0.00010999,2]
[335547927,1724319074424,-1130.77,0.00010999,2]
[335547928,1724319074436,-1130.77,0.00010999,2]
[335547929,1724319074446,-521378.55436432,0.00011,2]
[335547930,1724319074455,-279.56029639,0.00011,2]
[335547931,1724319074464,-3298638.21223716,0.00011,2]
[335547932,1724319074781,-281576.61977177,0.00011,2]
[335547933,1724319074794,-39982.21591552,0.00011,2]
[335547934,1724319074805,-219921.24735327,0.00011,2]
[335547935,1724319074816,-3054.19398321,0.00011,2]
[335547936,1724319074827,-688.86934225,0.00011,2]
[335547937,1724319074843,-6032.55630432,0.00011,2]
[335547938,1724319075040,-270.91601772,0.00010785,2]
[335547939,1724319075051,-634.82062851,0.00010785,2]
[335547940,1724319075061,-500.0,0.00010785,2]
[335547941,1724319075070,-500.0,0.00010785,2]
[335547942,1724319075079,-500.0,0.00010786,2]
[335547943,1724319075089,-500.0,0.00010786,2]
[335547944,1724319075099,-506.54183034,0.00010786,2]
[335547945,1724319075108,-500.0,0.00010787,2]
[335547946,1724319075118,-500.0,0.00010787,2]
[335547947,1724319075128,-205.733608,0.00010789,2]
[335547948,1724319075138,-500.0,0.00010789,2]
[335547949,1724319075148,-1205.0,0.00010888,2]
[335547950,1724319075157,-1130.77,0.00010999,2]
[335547951,1724319075166,-1130.77,0.00010999,2]
[335547952,1724319075175,-1130.77,0.00010999,2]
[335547953,1724319075186,-1130.77,0.00010999,2]
[335547954,1724319075195,-1130.77,0.00010999,2]
[335547955,1724319075205,-1130.95137786,0.00010999,2]
[335547956,1724319075216,-14800.69614804,0.00011,2]
[335547957,1724319075227,-767.9300541,0.00011,2]
[335547958,1724319075238,-237808.08987569,0.00011,2]
[335547959,1724319075268,-500.0,0.00010789,2]
[335547960,1724319075277,-3398.14041674,0.00011,2]
[335547961,1724319075288,-673.14206966,0.00011,2]
[335547962,1724319075502,-9521.52102756,0.00011,2]
[335547963,1724319075713,-203.06755488,0.00010009,2]
[335547964,1724319075723,-500.0,0.00010785,2]
[335547965,1724319075732,-500.0,0.00010785,2]
[335547966,1724319075742,-500.0,0.00010786,2]
[335547967,1724319075753,-304.35785438,0.00010786,2]
[335547968,1724319075763,-486.31971889,0.00010786,2]
[335547969,1724319075772,-500.0,0.00010786,2]
[335547970,1724319075783,-169.76477234,0.00010787,2]
[335547971,1724319075793,-500.0,0.00010789,2]
[335547972,1724319075803,-500.0,0.00010789,2]
[335547973,1724319075812,-183.99223492,0.00010798,2]
[335547974,1724319075822,-21779.0,0.00010867,2]
[335547975,1724319075832,-24392.13963009,0.00011,2]
[335547976,1724319075844,-8515.89,0.00011,2]
[335547977,1724319075855,-40637.43076967,0.00011,2]
[335547978,1724319075866,-11537.57862452,0.00011,2]
[335547979,1724319075878,-3895.98548099,0.00011,2]
[335547980,1724319076242,-321.45317572,0.00011,2]
[335547981,1724319076253,-1078.57073008,0.00011,2]
[335547982,1724319076264,-6102.11369093,0.00011,2]
[335547983,1724319076285,-510.9305077,0.00010786,2]
[335547984,1724319076294,-1281.29719367,0.00011,2]
[335547985,1724319076975,-500.0,0.00010787,2]
[335547986,1724319076985,-8284.51223957,0.00011,2]
[335547987,1724319076996,-2137.90186013,0.00011,2]
[335547988,1724319077129,192.9,9.855e-05,2]
[335547989,1724319099171,23899.15,9.738e-05,2]
[335547990,1724319124199,500.0,8.275e-05,2]
[335547991,1724319125302,500.0,8.22e-05,2]
[335547992,1724319125783,500.0,8.275e-05,2]
[335547993,1724319127399,500.0,9.645e-05,2]
[335547994,1724319129132,500.0,8.275e-05,2]
[335547995,1724319129663,500.0,8.22e-05,2]
[335547997,1724319131122,500.0,9.645e-05,2]
[335547998,1724319135833,208.96,9.738e-05,2]
[335547999,1724319155140,400.0,9.9e-05,3]
[335548000,1724319156152,285.25,9.738e-05,2]
[335548001,1724319222119,500.0,8.22e-05,2]
[335548002,1724319226460,500.0,8.22e-05,2]
[335548003,1724319232421,500.0,8.275e-05,2]
[335548004,1724319233999,500.0,9.645e-05,2]
[335548005,1724319236152,500.0,8.275e-05,2]
[335548006,1724319238288,500.0,9.645e-05,2]
[335548007,1724319323785,500.0,8.22e-05,2]
[335548008,1724319377614,372.56935512,8.22e-05,2]
[335548009,1724319457134,500.0,8.22e-05,2]
[335548010,1724319463145,496.0,9.761e-05,2]
[335548011,1724319485293,475.47,8.219e-05,2]
[335548012,1724319599765,710.0889,9.9e-05,2]
[335548013,1724319603274,181.15819189,9.899e-05,2]
[335548015,1724319717351,287.17,9.7e-05,2]
[335548017,1724319773361,1257.75837587,9.899e-05,2]
[335548018,1724319787243,206.02448722,9.899e-05,2]
[335548019,1724319802839,232.83,9.649e-05,2]
[335548021,1724319811946,172.77,9.649e-05,2]
[335548023,1724319850255,228.87138407,9.899e-05,2]
[335548030,1724320014344,26171.27753304,9.899e-05,2]
[335548032,1724320023886,400.0,9.9e-05,3]
[335548038,1724320086943,23890.0,9.657e-05,2]
[335548041,1724320120208,250.0,9.656e-05,2]
[335548043,1724320140589,489.28,8.219e-05,2]
[335548045,1724320168303,500.0,9.7e-05,2]
[335548046,1724320190748,1000.0,9.633e-05,2]
[335548052,1724320231569,-155.10399349,9.929e-05,2]
[335548053,1724320231580,-155.0,9.988e-05,2]
[335548054,1724320231589,-989.8,9.999e-05,2]
[335548055,1724320231599,-1050.0,0.0001,2]
[335548056,1724320231608,-900.0,0.0001,3]
[335548057,1724320231618,-293.57281943,0.00010026,2]
[335548058,1724320231628,-477.15433899,0.00010026,2]
[335548059,1724320231637,-193.0647406,0.00010026,2]
[335548060,1724320231647,-203.06755488,0.00010026,2]
[335548061,1724320231657,-304.23573553,0.00010026,2]
[335548062,1724320231667,-300.0,0.00010096,2]
[335548063,1724320231676,-1400.0,0.000101,3]
[335548064,1724320231686,-1900.0,0.000102,3]
[335548065,1724320231696,-2300.0,0.000103,3]
[335548066,1724320231706,-150.0,0.00010384,2]
[335548067,1724320231717,-499.99,0.000104,2]
[335548068,1724320231727,-400.0,0.000104,3]
[335548069,1724320231736,-489.28,0.00010458,2]
[335548070,1724320231747,-400.0,0.000105,3]
[335548071,1724320231757,-9058.67091685,0.00010578,2]
[335548072,1724320231767,-246.9811,0.00010588,2]
[335548073,1724320231776,-12207.5368,0.00010588,2]
[335548074,1724320231786,-150.0,0.00010588,2]
[335548075,1724320231795,-2615.2223,0.00010589,2]
[335548076,1724320231806,-400.0,0.000106,3]
[335548077,1724320231817,-3566.11880229,0.00010685,2]
[335548078,1724320231827,-113302.3874,0.00010686,2]
[335548079,1724320231845,-289.9408,0.00010687,2]
[335548080,1724320231854,-317.61944198,0.00010689,2]
[335548081,1724320231864,-400.0,0.000107,3]
[335548082,1724320231877,-152.63087406,0.00010776,2]
[335548083,1724320231887,-500.0,0.00010785,2]
[335548084,1724320231897,-500.0,0.00010785,2]
[335548085,1724320231906,-610.52941482,0.00010785,2]
[335548086,1724320231915,-500.0,0.00010785,2]
[335548087,1724320231924,-500.0,0.00010785,2]
[335548088,1724320231934,-500.0,0.00010785,2]
[335548089,1724320231943,-500.0,0.00010785,2]
[335548090,1724320231952,-500.0,0.00010785,2]
[335548091,1724320231961,-500.0,0.00010785,2]
[335548092,1724320231971,-500.0,0.00010785,2]
[335548093,1724320231980,-500.0,0.00010785,2]
[335548094,1724320231989,-500.0,0.00010785,2]
[335548095,1724320232002,-500.0,0.00010785,2]
[335548096,1724320232011,-500.0,0.00010785,2]
[335548097,1724320232020,-500.0,0.00010785,2]
[335548098,1724320232032,-500.0,0.00010785,2]
[335548099,1724320232042,-500.0,0.00010785,2]
[335548100,1724320232052,-500.0,0.00010785,2]
[335548101,1724320232062,-500.0,0.00010785,2]
[335548102,1724320232072,-500.0,0.00010785,2]
[335548103,1724320232081,-480.60460023,0.00010785,2]
[335548104,1724320232091,-500.0,0.00010785,2]
[335548105,1724320232102,-461.66998009,0.00010785,2]
[335548106,1724320232112,-500.0,0.00010785,2]
[335548107,1724320232122,-644.53,0.00010785,2]
[335548108,1724320232131,-500.0,0.00010785,2]
[335548109,1724320232140,-500.0,0.00010785,2]
[335548110,1724320232149,-1004.04,0.00010785,2]
[335548111,1724320232159,-500.0,0.00010785,2]
[335548112,1724320232168,-500.0,0.00010785,2]
[335548113,1724320232177,-500.0,0.00010785,2]
[335548114,1724320232187,-500.0,0.00010785,2]
[335548115,1724320232196,-500.0,0.00010785,2]
[335548116,1724320232205,-1637.88,0.00010785,2]
[335548117,1724320232215,-500.0,0.00010785,2]
[335548118,1724320232225,-500.0,0.00010785,2]
[335548119,1724320232234,-400.80507163,0.00010785,2]
[335548120,1724320232243,-500.0,0.00010785,2]
[335548121,1724320232252,-500.0,0.00010785,2]
[335548122,1724320232262,-480.5890014,0.00010785,2]
[335548123,1724320232271,-500.0,0.00010785,2]
[335548124,1724320232281,-500.0,0.00010785,2]
[335548125,1724320232290,-500.0,0.00010785,2]
[335548126,1724320232299,-500.0,0.00010785,2]
[335548127,1724320232309,-557.76,0.00010785,2]
[335548128,1724320232318,-500.0,0.00010785,2]
[335548129,1724320232329,-500.0,0.00010785,2]
[335548130,1724320232338,-500.0,0.00010785,2]
[335548131,1724320232347,-551.85,0.00010785,2]
[335548132,1724320232356,-500.0,0.00010785,2]
[335548133,1724320232366,-500.0,0.00010785,2]
[335548134,1724320232375,-500.0,0.00010785,2]
[335548135,1724320232384,-500.0,0.00010785,2]
[335548136,1724320232393,-500.0,0.00010785,2]
[335548137,1724320232403,-500.0,0.00010785,2]
[335548138,1724320232412,-500.0,0.00010785,2]
[335548139,1724320232421,-500.0,0.00010785,2]
[335548140,1724320232431,-500.0,0.00010785,2]
[335548141,1724320232440,-500.0,0.00010785,2]
[335548142,1724320232449,-555.53169305,0.00010785,2]
[335548143,1724320232459,-500.0,0.00010785,2]
[335548144,1724320232469,-500.0,0.00010785,2]
[335548145,1724320232479,-500.0,0.00010785,2]
[335548146,1724320232488,-500.0,0.00010785,2]
[335548147,1724320232497,-500.0,0.00010785,2]
[335548148,1724320232506,-500.0,0.00010785,2]
[335548149,1724320232516,-372.77750102,0.00010785,2]
[335548150,1724320232525,-500.0,0.00010785,2]
[335548151,1724320232534,-500.0,0.00010785,2]
[335548152,1724320232543,-500.0,0.00010785,2]
[335548153,1724320232553,-500.0,0.00010785,2]
[335548154,1724320232562,-500.0,0.00010785,2]
[335548155,1724320232571,-500.0,0.00010785,2]
[335548156,1724320232581,-500.0,0.00010785,2]
[335548157,1724320232590,-196.51882513,0.00010785,2]
[335548158,1724320232599,-500.0,0.00010785,2]
[335548159,1724320232609,-500.0,0.00010785,2]
[335548160,1724320232618,-500.0,0.00010785,2]
[335548161,1724320232627,-500.0,0.00010785,2]
[335548162,1724320232636,-362.11,0.00010785,2]
[335548163,1724320232645,-500.0,0.00010785,2]
[335548164,1724320232654,-500.0,0.00010785,2]
[335548165,1724320232663,-500.0,0.00010785,2]
[335548166,1724320232671,-500.0,0.00010785,2]
[335548167,1724320232680,-500.0,0.00010785,2]
[335548168,1724320232689,-500.0,0.00010785,2]
[335548169,1724320232698,-261.722,0.00010785,2]
[335548170,1724320232707,-500.0,0.00010785,2]
[335548171,1724320232716,-500.0,0.00010785,2]
[335548172,1724320232726,-500.0,0.00010785,2]
[335548173,1724320232735,-500.0,0.00010785,2]
[335548174,1724320232744,-150.0,0.00010785,2]
[335548175,1724320232754,-5000.0,0.00010785,2]
[335548176,1724320232763,-500.0,0.00010786,2]
[335548177,1724320232773,-463.83641779,0.00010786,2]
[335548178,1724320232782,-500.0,0.00010786,2]
[335548179,1724320232791,-500.0,0.00010786,2]
[335548180,1724320232800,-500.0,0.00010786,2]
[335548181,1724320232810,-507.33907626,0.00010786,2]
[335548182,1724320232819,-514.91010623,0.00010786,2]
[335548183,1724320232829,-507.15238552,0.00010786,2]
[335548184,1724320232839,-507.09379422,0.00010786,2]
[335548185,1724320232848,-500.0,0.00010786,2]
[335548186,1724320232857,-500.0,0.00010786,2]
[335548187,1724320232866,-500.0,0.00010786,2]
[335548188,1724320232876,-507.23672245,0.00010786,2]
[335548189,1724320232885,-500.0,0.00010786,2]
[335548190,1724320232894,-187.35233935,0.00010786,2]
[335548191,1724320232904,-500.0,0.00010786,2]
[335548192,1724320232914,-500.0,0.00010786,2]
[335548193,1724320232923,-500.0,0.00010786,2]
[335548194,1724320232932,-500.0,0.00010786,2]
[335548195,1724320232941,-500.0,0.00010786,2]
[335548196,1724320232950,-500.0,0.00010786,2]
[335548197,1724320232959,-500.0,0.00010786,2]
[335548198,1724320232969,-500.0,0.00010786,2]
[335548199,1724320232978,-498.45752207,0.00010786,2]
[335548200,1724320232988,-500.0,0.00010786,2]
[335548201,1724320233003,-500.0,0.00010786,2]
[335548202,1724320233012,-500.0,0.00010786,2]
[335548203,1724320233022,-500.0,0.00010786,2]
[335548204,1724320233031,-500.0,0.00010786,2]
[335548205,1724320233041,-502.85886116,0.00010786,2]
[335548206,1724320233051,-500.0,0.00010786,2]
[335548207,1724320233060,-500.0,0.00010786,2]
[335548208,1724320233069,-500.0,0.00010786,2]
[335548209,1724320233080,-500.0,0.00010786,2]
[335548210,1724320233089,-387.41244378,0.00010786,2]
[335548211,1724320233099,-500.0,0.00010786,2]
[335548212,1724320233108,-500.0,0.00010786,2]
[335548213,1724320233117,-507.16579884,0.00010786,2]
[335548214,1724320233126,-500.0,0.00010786,2]
[335548215,1724320233135,-500.0,0.00010786,2]
[335548216,1724320233144,-506.78,0.00010786,2]
[335548217,1724320233153,-644.53,0.00010786,2]
[335548218,1724320233163,-207.6337712,0.00010786,2]
[335548219,1724320233173,-500.0,0.00010786,2]
[335548220,1724320233182,-500.0,0.00010786,2]
[335548221,1724320233192,-500.0,0.00010786,2]
[335548222,1724320233202,-1004.04,0.00010786,2]
[335548223,1724320233212,-500.0,0.00010786,2]
[335548224,1724320233222,-538.67335774,0.00010786,2]
[335548225,1724320233232,-500.0,0.00010786,2]
[335548226,1724320233243,-500.0,0.00010786,2]
[335548227,1724320233253,-500.0,0.00010786,2]
[335548228,1724320233262,-602.8633408,0.00010786,2]
[335548229,1724320233272,-500.0,0.00010786,2]
[335548230,1724320233282,-500.0,0.00010786,2]
[335548231,1724320233292,-259.17524869,0.00010786,2]
[335548232,1724320233302,-1637.88,0.00010786,2]
[335548233,1724320233312,-1637.88,0.00010786,2]
[335548234,1724320233321,-500.0,0.00010786,2]
[335548235,1724320233332,-500.0,0.00010786,2]
[335548236,1724320233342,-500.0,0.00010786,2]
[335548237,1724320233352,-500.0,0.00010786,2]
[335548238,1724320233512,-252.78628587,0.00010786,2]
[335548239,1724320233522,-500.0,0.00010786,2]
[335548240,1724320233532,-500.0,0.00010786,2]
[335548241,1724320233541,-500.0,0.00010786,2]
[335548242,1724320233551,-500.0,0.00010786,2]
[335548243,1724320233560,-500.0,0.00010786,2]
[335548244,1724320233570,-500.0,0.00010786,2]
[335548245,1724320233580,-500.0,0.00010786,2]
[335548246,1724320233590,-500.0,0.00010786,2]
[335548247,1724320233599,-500.0,0.00010786,2]
[335548248,1724320233609,-557.76,0.00010786,2]
[335548249,1724320233618,-498.4654927,0.00010786,2]
[335548250,1724320233628,-500.0,0.00010786,2]
[335548251,1724320233638,-500.0,0.00010786,2]
[335548252,1724320233647,-500.0,0.00010786,2]
[335548253,1724320233656,-519.43334311,0.00010786,2]
[335548254,1724320233666,-605.67873349,0.00010786,2]
[335548255,1724320233676,-551.85,0.00010786,2]
[335548256,1724320233685,-500.0,0.00010786,2]
[335548257,1724320233695,-554.32726317,0.00010786,2]
[335548258,1724320233704,-500.0,0.00010786,2]
[335548259,1724320233714,-500.0,0.00010786,2]
[335548260,1724320233723,-236.59179537,0.00010786,2]
[335548261,1724320233732,-500.0,0.00010786,2]
[335548262,1724320233741,-514.06191099,0.00010786,2]
[335548263,1724320233751,-500.0,0.00010786,2]
[335548264,1724320233760,-500.0,0.00010786,2]